[Event "FRA-ch Teams Top 16-Haute 2022"]
[Site "Chartres"]
[Date "2022.06.16"]
[Round "8.29"]
[White "Demuth, Adrien"]
[Black "Libiszewski, Fabien"]
[Result "1/2-1/2"]
[ECO "E92"]
[WhiteElo "2493"]
[BlackElo "2514"]
[Annotator "TA"]
[PlyCount "64"]
[EventDate "2022.06.16"]
[EventType "team-tourn"]
[EventCountry "FRA"]
[SourceTitle "playchess.com"]
[Source "ChessBase"]
[SourceQuality "1"]
[TimeControl "40/5400+30:1800+30"]

{[%evp 16,64,34,35,22,27,25,31,10,32,18,0,61,70,66,69,68,64,76,63,140,144,140,0,0,0,4,-182,-157,-553,-579,-564,-550,-1236,-154,-126,-135,-140,-53,-60,-60,-65,-18,-18,-18,-41,-41,-49,-26,-34,-20]} 1. Nf3 {[%emt 0:00:03]} Nf6 {[%emt 0:00:47]} 2. c4 {[%emt 0:00:13]} g6 {[%emt 0:00:18]} 3. Nc3 {[%emt 0:00:06]} Bg7 {[%emt 0:00:14]} 4. d4 {[%emt 0:00:06]} O-O {[%emt 0:00:11]} 5. e4 {[%emt 0:00:04]} d6 {[%emt 0:00:07]} 6. Be2 {[%emt 0:00:04]} e5 {[%emt 0:00:41]} 7. d5 {[%emt 0:05:43]} a5 {[%emt 0:00:37]} 8. Bg5 {[%emt 0:02:32]} h6 {[%emt 0:01:14]} 9. Be3 {[%emt 0:00:05]} Ng4 {[%emt 0:04:22] E92: King's Indian: Classical: 6 Be2 e5: 7 dxe5, 7 Be3 and Petrosian System without 7...Nbd7.} 10. Bd2 $1 {[%emt 0:00:29] 10.Bd2 scores better than 10.Bc1.} f5 {[%emt 0:00:36]} 11. h3 {[%emt 0:01:41]} Nf6 {[%emt 0:00:31] White is slightly better.} 12. exf5 {[%emt 0:00:06]} gxf5 {[%emt 0:00:46]} 13. g4 {[%emt 0:00:37] [#]} Ne4 $5 $146 {[%emt 0:11:38][%mdl 8] Prevents g5. An interesting novelty.} (13... fxg4 $11 14. hxg4 Nxg4) ({Predecessor:} 13... Na6 14. g5 hxg5 15. Bxg5 Nc5 16. Rg1 Kh8 17. Qc2 Qe8 18. O-O-O Nfe4 19. Nb5 Qf7 {1-0 (40) Moskalenko,A (2515)-Perez Ponsa,F (2554) Chess.com INT 2021}) 14. Nxe4 $1 $14 {[%emt 0:16:24]} fxe4 {[%emt 0:00:07]} 15. Nh2 {[%emt 0:00:17][%cal Bf3h2,Bh2f1,Bf1g3][%mdl 32]} Na6 {[%emt 0:21:23]} ({Much weaker is} 15... Qh4 16. Be3 $11) 16. Be3 {[%emt 0:08:25]} Bd7 {[%emt 0:08:13]} 17. Nf1 {[%emt 0:03:53]} Rf4 {[%emt 0:05:45]} 18. Ng3 $16 {[%emt 0:12:23]} Qh4 {[%emt 0:02:12]} 19. Bxf4 {[%emt 0:21:26]} ({White should try} 19. Qd2 $1 $16) 19... exf4 $11 {[%emt 0:00:39]} 20. Nxe4 {[%emt 0:00:03] Black must now prevent Kf1.} Re8 $36 {[%emt 0:00:43][%mdl 2048] Black has the initiative.} 21. Bf3 {[%emt 0:00:47]} (21. Qd3 $11 {and White has nothing to worry.}) 21... Nc5 $1 $19 {[%emt 0:02:01]} 22. Qc2 {[%emt 0:13:55]} (22. Qe2 $17 Bxb2 23. Rd1 Nxe4 24. Bxe4) 22... Nxe4 {[%emt 0:01:33]} (22... Qe7 $2 23. O-O-O $1 $18) 23. Bxe4 {[%emt 0:00:05] [#] Strongly threatening 0-0-0.} Bxg4 $3 {[%emt 0:00:28][%mdl 576] Pin} 24. Kf1 {[%emt 0:05:58] [#]} (24. Rg1 Bf5) 24... Bxh3+ {[%emt 0:01:31]} (24... f3 $1 $19 {and Black stays clearly on top.} 25. Kg1 Bh5 26. Bxf3 Bxf3) 25. Rxh3 $17 {[%emt 0:00:07]} Qxh3+ {[%emt 0:00:12]} 26. Bg2 {[%emt 0:00:03]} Qh4 {[%emt 0:09:34]} (26... Qg4 $17 {Threatens to win with ...f3.} 27. f3 Qg3) 27. Re1 $15 {[%emt 0:02:16]} Rf8 {[%emt 0:08:18] And now ...f3 would win.} 28. Qe4 {[%emt 0:00:49]} Qf6 {[%emt 0:02:19]} (28... Bxb2 $15 29. Qg6+ Bg7) 29. Qe6+ {[%emt 0:02:42]} Kh8 {[%emt 0:01:22] aiming for ...f3.} 30. Qxf6 {[%emt 0:00:05]} Bxf6 {[%emt 0:00:06]} 31. b3 {[%emt 0:01:02]} Be5 {[%emt 0:00:19]} (31... a4 $5) 32. Ke2 {[%emt 0:01:09]} Kg7 {[%emt 0:00:43] Whites escaped into a draw.  Weighted Error Value: White=0.67/Black=0.33} 1/2-1/2

[Event "FRA-ch Teams Top 16-Haute 2022"]
[Site "Chartres"]
[Date "2022.06.16"]
[Round "8.30"]
[White "Gharamian, Tigran"]
[Black "Wirig, Anthony"]
[Result "1/2-1/2"]
[ECO "B45"]
[WhiteElo "2602"]
[BlackElo "2520"]
[Annotator "TA"]
[PlyCount "60"]
[EventDate "2022.06.16"]
[EventType "team-tourn"]
[EventCountry "FRA"]
[SourceTitle "playchess.com"]
[Source "ChessBase"]
[SourceQuality "1"]
[TimeControl "40/5400+30:1800+30"]

{[%evp 23,60,33,47,0,0,2,13,12,10,8,13,14,7,9,12,14,13,14,12,9,12,11,14,10,6,9,17,19,22,0,10,0,0,0,0,0,0,0,0]} 1. e4 {[%emt 0:00:05]} c5 {[%emt 0:00:44]} 2. Nf3 {[%emt 0:00:07][%cal Bg1f3,Bf3d4,Bd4b5,Bb5c3][%mdl 32]} e6 {[%emt 0:00:38]} 3. d4 {[%emt 0:00:28]} cxd4 {[%emt 0:00:10]} 4. Nxd4 {[%emt 0:00:05]} Nf6 {[%emt 0:00:10]} 5. Nc3 {[%emt 0:00:10]} Nc6 {[%emt 0:00:05]} 6. Ndb5 {[%emt 0:02:38]} Bb4 {[%emt 0:03:47]} 7. a3 {[%emt 0:00:40]} Bxc3+ {[%emt 0:00:13]} 8. Nxc3 {[%emt 0:00:06]} d5 {[%emt 0:00:04]} 9. exd5 {[%emt 0:03:49]} exd5 {[%emt 0:00:36]} 10. Bd3 {[%emt 0:00:04]} O-O {[%emt 0:00:45]} 11. O-O {[%emt 0:01:21]} Bg4 {[%emt 0:00:34]} 12. f3 {[%emt 0:23:29]} Bh5 $1 {[%emt 0:00:18][%mdl 4] is more profitable than 12...Be6 at the moment.} 13. Rf2 {[%emt 0:00:12] B45: Sicilian Four Knights.} (13. Bg5 {feels hotter.} Qb6+ 14. Kh1 Rad8 15. Re1) 13... d4 {[%emt 0:13:07] The position is equal.} 14. Ne2 {[%emt 0:06:17] [#]} Bg6 $146 {[%emt 0:00:26]} ({Predecessor:} 14... Nd5 15. b4 Nc3 16. Qd2 Nxe2+ 17. Rxe2 a6 18. a4 Bg6 19. Ba3 Re8 20. Rxe8+ Qxe8 21. Re1 Qd7 {½-½ (45) Mohammad,M (2322)-Rahman,M (2196) Dhaka 2019}) 15. Bb5 {[%emt 0:16:31]} d3 {[%emt 0:26:35]} 16. Bxd3 {[%emt 0:02:50]} (16. cxd3 {seems wilder.} Qb6 17. Bc4 Rad8 18. Qb3) 16... Bxd3 {[%emt 0:03:35]} (16... Re8 {with more complications.} 17. Bg5 Qb6 18. Bxg6 hxg6 19. Rb1 Qc5) 17. Qxd3 {[%emt 0:02:59]} Qxd3 {[%emt 0:00:30]} 18. cxd3 {[%emt 0:00:05]} Rfd8 {[%emt 0:09:43]} 19. Bg5 {[%emt 0:01:36]} Rxd3 {[%emt 0:01:57]} 20. Bxf6 {[%emt 0:00:06]} gxf6 {[%emt 0:00:03]} 21. Nf4 {[%emt 0:01:16]} Rd6 {[%emt 0:01:17]} 22. Re2 {[%emt 0:03:08]} Kg7 {[%emt 0:04:28]} 23. Rc1 {[%emt 0:10:29]} Rad8 {[%emt 0:01:36]} 24. Kf2 {[%emt 0:02:28]} Rd2 {[%emt 0:10:03]} (24... f5 {is more complex.} 25. Rc5 Kf6 26. g4 fxg4 27. fxg4 Rd2) 25. Rc2 {[%emt 0:02:08]} R2d4 {[%emt 0:13:36]} 26. Kg3 {[%emt 0:05:44]} Kh6 {[%emt 0:01:25] [#] Threatens to win with ...Rg8+.} 27. Nh3 {[%emt 0:00:40]} Rg8+ {[%emt 0:01:52]} 28. Kf2 {[%emt 0:00:10]} Rgd8 {[%emt 0:00:15]} 29. Kg3 {[%emt 0:00:15]} Rg8+ {[%emt 0:00:06]} 30. Kf2 {[%emt 0:00:04]} Rgd8 {[%emt 0:00:04] An uneventful encounter.  Weighted Error Value: White=0.05 (flawless) /Black=0.02 (flawless)} 1/2-1/2

[Event "FRA-ch Teams Top 16-Haute 2022"]
[Site "Chartres"]
[Date "2022.06.16"]
[Round "8.31"]
[White "Loiseau, Quentin"]
[Black "Delorme, Axel"]
[Result "0-1"]
[ECO "E06"]
[WhiteElo "2445"]
[BlackElo "2461"]
[Annotator "TA"]
[PlyCount "74"]
[EventDate "2022.06.16"]
[EventType "team-tourn"]
[EventCountry "FRA"]
[SourceTitle "playchess.com"]
[Source "ChessBase"]
[SourceQuality "1"]
[TimeControl "40/5400+30:1800+30"]

{[%evp 16,74,11,0,5,0,15,10,31,26,27,-1,0,-57,-63,-71,-54,-70,-56,-60,-51,-60,-62,-53,-20,-21,-12,-264,-256,-341,-321,-336,-166,-162,-152,-158,-176,-320,-324,-378,-365,-352,-352,-498,-443,-920,-913,-1762,-1752,-6935,-6935,-5826,-1518,-5589,-3930,-2050,-1231,-29994,-29995,-29995,-1254]} 1. d4 {[%emt 0:00:03]} Nf6 {[%emt 0:00:08]} 2. c4 {[%emt 0:00:19]} e6 {[%emt 0:00:03]} 3. g3 {[%emt 0:00:11]} d5 {[%emt 0:01:37]} 4. Bg2 {[%emt 0:00:41]} Be7 {[%emt 0:00:03]} 5. Nf3 {[%emt 0:00:15]} O-O {[%emt 0:00:09]} 6. O-O {[%emt 0:00:06]} c6 {[%emt 0:01:33]} 7. Qc2 {[%emt 0:02:20]} b6 $1 {[%emt 0:03:55][%mdl 4] is now more promising than 7...Nbd7.} 8. Nbd2 {[%emt 0:00:41]} Bb7 {[%emt 0:05:43]} 9. e4 {[%emt 0:01:38][%cal Be2e4,Be4e5][%mdl 32]} a5 {[%emt 0:00:04] E06: Closed Catalan: Early deviations.} 10. Re1 {[%emt 0:03:43]} Na6 {[%emt 0:00:11]} 11. a3 {[%emt 0:20:43]} Rc8 {[%emt 0:05:36] The position is equal.} 12. e5 {[%emt 0:05:40]} Nd7 {[%emt 0:00:23] [#]} 13. Bf1 $146 {[%emt 0:00:20]} ({Predecessor:} 13. b3 c5 14. Bb2 dxc4 15. Ng5 Bxg5 16. Bxb7 cxb3 17. Nxb3 a4 18. Nc1 Rb8 19. Bxa6 {1-0 (41) Lehmann,L (1918)-Hentze,M (2115) Leipzig 2014}) 13... dxc4 {[%emt 0:13:45]} 14. Ne4 {[%emt 0:02:47]} (14. Bxc4 c5 $15) (14. Nxc4 $11 c5 15. Qd1) 14... c5 $1 $15 {[%emt 0:02:22] [#] Strongly threatening ...cxd4.} 15. Neg5 {[%emt 0:13:09][%csl Gg5][%cal Rc2h7]} g6 {[%emt 0:02:18] White must now prevent ...cxd4.} 16. d5 {[%emt 0:10:06]} Bxd5 {[%emt 0:04:42] Hoping for ...b5.} ({Much less strong is} 16... exd5 17. e6 $16) 17. Bxc4 {[%emt 0:01:14]} Nc7 {[%emt 0:04:10]} 18. h4 {[%emt 0:02:41]} b5 {[%emt 0:05:48]} 19. Bxd5 {[%emt 0:01:04]} exd5 {[%emt 0:03:02]} 20. h5 $1 {[%emt 0:01:12]} Ne6 $36 {[%emt 0:03:16][%cal Re7g5][%mdl 2048] Black is more active.} 21. Nxe6 {[%emt 0:11:59][%mdl 8192] White does not recover from this.} (21. hxg6 $1 $11 Bxg5 22. gxf7+ Rxf7 23. Nxg5 Nxg5 24. Bxg5 Qxg5 25. e6) 21... fxe6 $19 {[%emt 0:00:39]} 22. hxg6 {[%emt 0:01:01]} Rxf3 {[%emt 0:04:02]} 23. gxh7+ {[%emt 0:00:04] [#]} Kh8 {[%emt 0:05:50]} (23... Kg7 $142 $1 24. Kg2 Rf5) 24. Qg6 {[%emt 0:00:18]} Qe8 {[%emt 0:10:40]} 25. Qxe6 {[%emt 0:00:26]} Rf7 {[%emt 0:00:13][%cal Bf3f7,Bf7g7,Bg7h7][%mdl 32] aiming for ...d4.} 26. Bf4 {[%emt 0:07:12]} (26. Qxd5 $142 Nb6 27. Qe6) 26... d4 {[%emt 0:07:09]} ({Stronger than} 26... Rxh7 27. Kg2 Nf8 28. Qxd5 $17) 27. Qg4 {[%emt 0:04:56]} Rg7 {[%emt 0:09:20]} 28. Qf5 {[%emt 0:03:30]} Nb6 {[%emt 0:00:12]} ({Weaker is} 28... Rxh7 29. Kg2 $14) 29. Bh6 {[%emt 0:04:10]} (29. e6 {was called for.} Qg6 30. Qe4) 29... Rxh7 {[%emt 0:01:35]} 30. Kg2 {[%emt 0:02:00]} (30. Bg5 $142 Bxg5 31. Qxg5) 30... Qc6+ {[%emt 0:00:38]} 31. f3 {[%emt 0:00:06]} Qxh6 {[%emt 0:00:39]} 32. Rh1 {[%emt 0:00:10]} Qd2+ {[%emt 0:00:35]} 33. Kg1 {[%emt 0:00:04]} Rxh1+ {[%emt 0:01:51]} 34. Kxh1 {[%emt 0:00:01]} Kg7 {[%emt 0:00:41] ( -> ...Rh8+)} 35. Qg4+ {[%emt 0:00:21]} Qg5 {[%emt 0:00:13]} 36. Qe6 {[%emt 0:00:12]} Rh8+ {[%emt 0:00:38]} 37. Kg2 {[%emt 0:00:08]} Rh6 {[%emt 0:00:36] Weighted Error Value: White=1.10/Black=0.24 (precise)} (37... Qd2+ $142 38. Kg1 Qh2+ 39. Kf1 Qh1+ 40. Ke2 Rh2+ 41. Kd3 Qxf3#) 0-1

[Event "FRA-ch Teams Top 16-Haute 2022"]
[Site "Chartres"]
[Date "2022.06.16"]
[Round "8.32"]
[White "Benmesbah, Natacha"]
[Black "Milliet, Sophie"]
[Result "0-1"]
[ECO "C58"]
[WhiteElo "2251"]
[BlackElo "2410"]
[Annotator "TA"]
[PlyCount "60"]
[EventDate "2022.06.16"]
[EventType "team-tourn"]
[EventCountry "FRA"]
[SourceTitle "playchess.com"]
[Source "ChessBase"]
[SourceQuality "1"]
[TimeControl "40/5400+30:1800+30"]

{[%evp 13,60,15,33,20,34,48,14,26,50,42,31,35,16,17,37,-8,-23,-107,-120,-110,-95,-142,-118,-190,-181,-182,-152,-151,-118,-121,-121,-120,-112,-179,-172,-343,-331,-301,-206,-199,-199,-326,-316,-391,-434,-420,-427,-472,-444]} 1. e4 {[%emt 0:00:03]} e5 {[%emt 0:00:10]} 2. Nf3 {[%emt 0:00:04]} Nc6 {[%emt 0:00:03]} 3. Bc4 {[%emt 0:00:07]} Nf6 {[%emt 0:00:05]} 4. Ng5 {[%emt 0:00:06]} d5 {[%emt 0:00:12]} 5. exd5 {[%emt 0:00:04]} Na5 {[%emt 0:00:04]} 6. Bb5+ {[%emt 0:00:02]} Bd7 {[%emt 0:00:06]} 7. Qe2 {[%emt 0:00:14]} Be7 {[%emt 0:00:05]} 8. Nf3 {[%emt 0:00:19] C58: Two Knights: 4 Ng5 d5 5 exd5 Na5 sidelines.} Nxd5 {[%emt 0:02:32]} 9. Bxd7+ {[%emt 0:03:54]} Qxd7 {[%emt 0:00:11]} 10. Nxe5 {[%emt 0:00:34] The position is equal.} Qe6 {[%emt 0:00:25]} 11. Nf3 {[%emt 0:03:46]} Qg6 {[%emt 0:02:35] And now ...Nf4 would win.} 12. d4 $1 {[%emt 0:09:25] 0-0 is the strong threat.} Qxg2 {[%emt 0:13:53]} 13. Rg1 {[%emt 0:00:07]} Qh3 {[%emt 0:00:05] [#]} 14. Bd2 $146 {[%emt 0:15:30]} (14. Rg3 $5 {[%cal Rg3h3]} Qe6 15. Qxe6 (15. Rxg7 O-O-O $14) 15... fxe6 16. Rxg7 $11) ({Predecessor:} 14. Rg3 Qe6 15. Qxe6 fxe6 16. Rxg7 Bf6 17. Rg4 O-O-O 18. Nbd2 Nc6 19. Kf1 Rdf8 20. Nb3 {½-½ (41) Langheld,W (2013)-Gazen,L (1931) LSS email 2017}) 14... O-O-O {[%emt 0:22:40][%cal Oh8e8] aiming for ...Rhe8!} 15. Bxa5 {[%emt 0:40:06]} (15. Rg3 $11 {keeps the balance.} Qf5 16. Bxa5 Bb4+ 17. Bxb4) 15... Rhe8 $1 $17 {[%emt 0:03:06] Black is more active.} 16. Ne5 {[%emt 0:03:09] Threatens to win with Nc3.} f6 $1 {[%emt 0:01:58]} 17. Rg3 {[%emt 0:03:01]} (17. Rxg7 $2 fxe5 18. Qg4+ (18. dxe5 $2 Bf6 $19) 18... Qxg4 19. Rxg4 exd4 $19) ({White should play} 17. Nc3 fxe5 18. Nxd5 (18. dxe5 Bf6 $17) (18. Rxg7 $2 exd4 19. Nxd5 Bb4+ 20. Bxb4 Rxe2+ 21. Kxe2 Rxd5 $19) 18... Rxd5 19. Bd2) 17... Qe6 {[%emt 0:22:09]} 18. Nc3 {[%emt 0:01:22]} fxe5 $19 {[%emt 0:01:25]} 19. O-O-O {[%emt 0:01:08]} (19. dxe5 Bf6 $1 20. exf6 Qa6 $17) (19. Rxg7 Nf4 20. Qxe5 Bd6 21. Qxe6+ Nxe6) 19... Nf4 {[%emt 0:09:28]} 20. Qe4 {[%emt 0:03:22]} Qa6 {[%emt 0:00:51]} 21. Qxe5 {[%emt 0:03:50][%csl Ga5][%cal Re5c7]} (21. dxe5 $2 Rxd1+ 22. Kxd1 Qf1+ 23. Kd2 Qxf2+ 24. Ne2 Nxe2 25. Qg4+ Kb8 26. Qxe2 Bg5+ $1 {[%mdl 512]} 27. Kd1 Qxe2+ 28. Kxe2 Rxe5+ 29. Kd3 Rxa5 $19) 21... Bd6 {[%emt 0:00:11]} 22. Qf5+ {[%emt 0:00:41]} Kb8 {[%emt 0:00:01][%mdl 1024] Strongly threatening ...g6. Black has strong compensation.} 23. Re3 {[%emt 0:02:24]} (23. Rxg7 $17 {was called for.} Ne6 24. Rxh7) 23... b6 $36 {[%emt 0:04:44][%mdl 2048] Hoping for ...Rf8. Keeping White busy.} 24. Ne4 $2 {[%emt 0:04:22]} (24. Rxe8 Rxe8 25. Bb4) 24... g6 {[%emt 0:07:36][%mdl 64] Deflection} (24... Qxa5 $2 25. Nxd6 Ne2+ 26. Kb1 cxd6 27. Qxa5 bxa5 28. c3 $19) 25. Qg4 {[%emt 0:00:55]} h5 {[%emt 0:01:10]} ({Worse is} 25... Qxa5 26. Nxd6 Rf8 27. Ne4 $17 (27. Ra3 $2 Qd5 $19)) 26. Qf3 {[%emt 0:03:09] [#]} Rf8 $1 {[%emt 0:00:04]} 27. Bc3 {[%emt 0:01:45] [#]} (27. Nxd6 $142 Nd3+ 28. Rdxd3 Rxf3 29. Rxf3 cxd6 30. Bc3) 27... Nd3+ $1 {[%emt 0:00:30][%mdl 512]} 28. Rexd3 {[%emt 0:00:08]} (28. Rdxd3 Rxf3) 28... Rxf3 {[%emt 0:00:05]} 29. Rxf3 {[%emt 0:00:02]} Qe2 {[%emt 0:01:50]} 30. Nd2 {[%emt 0:00:03]} Bxh2 {[%emt 0:00:30] Weighted Error Value: White=0.36/Black=0.11 (very precise)} 0-1

[Event "FRA-ch Teams Top 16-Haute 2022"]
[Site "Chartres"]
[Date "2022.06.17"]
[Round "9.1"]
[White "Movsesian, Sergei"]
[Black "Parligras, Mircea-Emilian"]
[Result "1/2-1/2"]
[ECO "C65"]
[WhiteElo "2600"]
[BlackElo "2583"]
[Annotator "TA"]
[PlyCount "33"]
[EventDate "2022.06.16"]
[EventType "team-tourn"]
[EventCountry "FRA"]
[SourceTitle "playchess.com"]
[Source "ChessBase"]
[SourceQuality "1"]
[TimeControl "40/5400+30:1800+30"]

{[%evp 9,33,4,8,18,25,29,27,22,25,28,26,24,30,14,18,16,22,21,16,10,11,0,0,-16,0,-51]} 1. e4 {[%emt 0:00:05]} e5 {[%emt 0:00:08]} 2. Nf3 {[%emt 0:00:09]} Nc6 {[%emt 0:00:05]} 3. Bb5 {[%emt 0:00:48]} Nf6 {[%emt 0:00:10]} 4. d3 {[%emt 0:00:30]} Bc5 {[%emt 0:00:10]} 5. c3 {[%emt 0:00:38]} O-O {[%emt 0:00:13]} 6. O-O {[%emt 0:00:17] C65: Ruy Lopez: Berlin Defence (3...Nf6), unusual lines and 4 0-0 Bc5.} d5 {[%emt 0:00:10]} 7. exd5 {[%emt 0:03:14]} Qxd5 {[%emt 0:00:08][%cal Oc5f2]} 8. Bc4 {[%emt 0:00:46] White has an edge.} Qd8 {[%emt 0:00:10]} 9. Nbd2 {[%emt 0:01:35]} a6 {[%emt 0:00:30]} 10. a4 {[%emt 0:01:26] Inhibits b5.} h6 {[%emt 0:00:13] [#]} 11. Qe2 $146 {[%emt 0:02:44]} ({Predecessor:} 11. Re1 Re8 12. b4 Bd6 13. Ne4 Be6 14. Qb3 Bxc4 15. Qxc4 Be7 16. Nxf6+ Bxf6 17. Nd2 {½-½ (48) Brkic,A (2599)-Van Foreest,L (2532) Terme Catez 2021}) 11... Re8 {[%emt 0:01:15] The position is equal.} 12. Ne4 {[%emt 0:05:53]} Nxe4 {[%emt 0:02:45]} 13. dxe4 {[%emt 0:00:53][%cal Oc4f7]} Qf6 {[%emt 0:08:08]} 14. Be3 {[%emt 0:06:05]} Bxe3 {[%emt 0:01:57]} 15. Qxe3 {[%emt 0:03:41]} Be6 {[%emt 0:15:04]} 16. Be2 {[%emt 0:03:04]} Na5 {[%emt 0:06:54]} 17. Nd2 {[%emt 0:09:08] A balanced but interesting game.  Weighted Error Value: White=0.03 (flawless) /Black=0.03 (flawless)} (17. b4 $11 Nc4 18. Qc5) 1/2-1/2

[Event "FRA-ch Teams Top 16-Haute 2022"]
[Site "Chartres"]
[Date "2022.06.17"]
[Round "9.2"]
[White "Abasov, Nijat"]
[Black "Esipenko, Andrey"]
[Result "1/2-1/2"]
[ECO "C50"]
[WhiteElo "2635"]
[BlackElo "2709"]
[Annotator "TA"]
[PlyCount "31"]
[EventDate "2022.06.16"]
[EventType "team-tourn"]
[EventCountry "FRA"]
[SourceTitle "playchess.com"]
[Source "ChessBase"]
[SourceQuality "1"]
[TimeControl "40/5400+30:1800+30"]

{[%evp 14,31,7,7,9,2,12,12,26,0,23,20,29,-15,0,-15,-4,0,-12,-25]} 1. e4 {[%emt 0:00:04]} e5 {[%emt 0:00:10]} 2. Nf3 {[%emt 0:00:05]} Nc6 {[%emt 0:00:07]} 3. Bc4 {[%emt 0:00:09]} Nf6 {[%emt 0:00:20]} 4. d3 {[%emt 0:00:06]} Bc5 {[%emt 0:00:55]} 5. O-O {[%emt 0:00:14]} O-O {[%emt 0:00:09]} 6. Nc3 {[%emt 0:00:06]} h6 {[%emt 0:11:55]} 7. h3 {[%emt 0:00:27]} d6 {[%emt 0:02:08]} 8. Na4 {[%emt 0:00:13]} Bb6 {[%emt 0:00:09] C50: Hungarian Defence and Giuoco Pianissimo.} 9. a3 {[%emt 0:00:22]} Ne7 {[%emt 0:01:06] 9...Re8 is becoming the main line.} 10. Re1 {[%emt 0:05:42]} Ng6 {[%emt 0:01:19]} 11. b4 {[%emt 0:04:30] [#]} Qe8 $146 {[%emt 0:06:54]} ({Predecessor:} 11... Re8 12. Bb3 Nh5 13. Nxb6 axb6 14. Ng5 hxg5 15. Qxh5 Be6 16. Bxe6 Rxe6 17. Bxg5 Qd7 {1-0 (27) Aronian,L (2772)-Mikhalevski,V (2562) Warsaw 2021}) 12. Nxb6 {[%emt 0:01:11]} axb6 {[%emt 0:00:05]} 13. c3 {[%emt 0:03:01]} Be6 {[%emt 0:02:31] The position is equal.} 14. Bxe6 {[%emt 0:00:49]} Qxe6 {[%emt 0:00:07]} 15. a4 {[%emt 0:01:51]} b5 {[%emt 0:13:31]} 16. Be3 {[%emt 0:15:45] An interesting draw.  Weighted Error Value: White=0.08 (flawless) /Black=0.10 (very precise)} 1/2-1/2